Workbook

Sheet Admin (hidden)
B1: To the Instructor:
A3: To deploy the program
A4: 1 | B4: Click on CNTL-SHIFT-D
A5: 2 | B5: Excel will then close and you will be prompted to save the the file.
A6: 3 | B6: Give the file a new name.
A7: 4 | B7: Have students copy the file and save with their name or initials.
A8: 5 | B8: When you open the file again, it will take you (or students) directly to the logon screen so they can proceed through the program.
A9: 6 | B9: Either have students work on a shared drive or e-mail the file to you when complete.
A10: 7 | B10: Their results are on the Results screen.
A13: Viewing the Excel Workbook rather than the menu forms.
A14: 1) | B14: Click CNTL-SHIFT-G To get back to this screen and/or make changes to the quizzes,
A15: 2) | B15: Alternatively, click on the bottom of that screen labeled "Created by L. Lovata, Ph.D."
A16: 3) | B16: That button also unprotects the worksheets. Hopefully, students won't figure out this trick.
A17: 4) | B17: This will allow you can open the results tab (see below) to see questions attempted and when the quiz was completed as well as view/change questions and answers. (If you get an error, just select End.)
A19: Possible browser issues
A20: 1) | B20: Make sure they don't have a Zoom setting greater that 100%. If they do, they might not see the entire screen.
A21: 2) | B21: Make sure Excel is macro-enabled.

Sheet Results (hidden)
A1: ID | B1: FIRST | C1: LAST | D1: QUIZ | E1: CORRECT | F1: TOTAL | G1: ATTEMPTED
D2: 1 | F2: =QuizNames!C2 -> 20
D3: 2 | F3: =QuizNames!C3 -> 20
D4: 3 | F4: =QuizNames!C4 -> 20
D5: 4 | F5: =QuizNames!C5 -> 20
D6: 5 | F6: =QuizNames!C6 -> 20
D9: Total | E9: =SUM(E2:E8) -> 0 | F9: =SUM(F2:F8) -> 100
A10: This tab shows their highest score. | D10: Percent | E10: =E9/F9 -> 0
A11: See attempts tab to see all attempts. | C11: Out of | D11: 10 | E11: =E10*D11 -> 0

Sheet Attempts (hidden)
A1: ID | B1: FIRST | C1: LAST | D1: QUIZ | E1: ATTEMPTED | F1: CORRECT | G1: TIME START | H1: TIME STOP | I1: TIME SPENT

Sheet Quiz1 (hidden)
A1: QuestionNo | B1: QuizNo | C1: Random | D1: Index | E1: Question | F1: DrAns1 | G1: DrRtWg1 | H1: Dr1 | I1: DrAns2 | J1: DrRtWg2 | K1: Dr2 | L1: DrAns3 | M1: DrRtWg3 | N1: Dr3 | O1: CrAns1 | P1: CrRtWg1 | Q1: Cr1 | R1: CrAns2 | S1: CrRtWg2 | T1: Cr2 | U1: CrAns3 | V1: CrRtWg3 | W1: Cr3 | X1: QstType
A2: 9 | B2: 1 | C2: =RAND() -> 0.2668296475 | D2: =SUM(B2:C2) -> 1.266829647 | E2: A mortgage is: | F2: An Asset | G2: FALSE | H2: dr | I2: An expense | J2: FALSE | K2: dr | O2: A Liability | P2: TRUE | Q2: cr | R2: Stockholders' Equity | S2: FALSE | T2: cr | U2: Revenue | V2: FALSE | W2: cr | X2: 1
A3: 3 | B3: 1 | C3: 0.01655515548 | D3: =SUM(B3:C3) -> 1.016555155 | E3: The Advertising Expense account is: | F3: An Asset | G3: FALSE | H3: dr | I3: An expense | J3: TRUE | K3: dr | O3: A Liability | P3: FALSE | Q3: cr | R3: Stockholders' Equity | S3: FALSE | T3: cr | U3: Revenue | V3: FALSE | W3: cr | X3: 1
A4: 11 | B4: 1 | C4: 0.5570612853 | D4: =B4+C4 -> 1.557061285 | E4: Cost of Goods Sold is: | F4: An Asset | G4: FALSE | H4: dr | I4: An expense | J4: TRUE | K4: dr | O4: A Liability | P4: FALSE | Q4: cr | R4: Stockholders' Equity | S4: FALSE | T4: cr | U4: Revenue | V4: FALSE | W4: cr | X4: 1
A5: 14 | B5: 1 | C5: 0.05561601315 | D5: =SUM(B5:C5) -> 1.055616013 | E5: The Utilities Payable account is: | F5: An Asset | G5: FALSE | H5: dr | I5: An expense | J5: FALSE | K5: dr | O5: A Liability | P5: TRUE | Q5: cr | R5: Stockholders' Equity | S5: FALSE | T5: cr | U5: Revenue | V5: FALSE | W5: cr | X5: 1
A6: 2 | B6: 1 | C6: 0.2844009704 | D6: =SUM(B6:C6) -> 1.28440097 | E6: A loan to buy a car is: | F6: An Asset | G6: FALSE | H6: dr | I6: An expense | J6: FALSE | K6: dr | O6: A Liability | P6: TRUE | Q6: cr | R6: Stockholders' Equity | S6: FALSE | T6: cr | U6: Revenue | V6: FALSE | W6: cr | X6: 1
A7: 10 | B7: 1 | C7: 0.1995885741 | D7: =SUM(B7:C7) -> 1.199588574 | E7: The Sales account is: | F7: An Asset | G7: FALSE | H7: dr | I7: An expense | J7: FALSE | K7: dr | O7: A Liability | P7: FALSE | Q7: cr | R7: Stockholders' Equity | S7: FALSE | T7: cr | U7: Revenue | V7: TRUE | W7: cr | X7: 1
A8: 8 | B8: 1 | C8: 0.4169745785 | D8: =B8+C8 -> 1.416974578 | E8: Preferred Stock is: | F8: An Asset | G8: FALSE | H8: dr | I8: An expense | J8: FALSE | K8: dr | O8: A Liability | P8: FALSE | Q8: cr | R8: Stockholders' Equity | S8: TRUE | T8: cr | U8: Revenue | V8: FALSE | W8: cr | X8: 1
A9: 6 | B9: 1 | C9: 0.6362798436 | D9: =SUM(B9:C9) -> 1.636279844 | E9: The Salaries Payable account is: | F9: An Asset | G9: FALSE | H9: dr | I9: An expense | J9: FALSE | K9: dr | O9: A Liability | P9: TRUE | Q9: cr | R9: Stockholders' Equity | S9: FALSE | T9: cr | U9: Revenue | V9: FALSE | W9: cr | X9: 1
A10: 7 | B10: 1 | C10: 0.683837554 | D10: 1.683837554 | E10: Building is: | F10: An Asset | G10: TRUE | H10: dr | I10: An expense | J10: FALSE | K10: dr | O10: A Liability | P10: FALSE | Q10: cr | R10: Stockholders' Equity | S10: FALSE | T10: cr | U10: Revenue | V10: FALSE | W10: cr | X10: 1
A11: 4 | B11: 1 | C11: 0.806648197 | D11: 1.806648197 | E11: The Accounts Receivables account is: | F11: An Asset | G11: TRUE | H11: dr | I11: An expense | J11: FALSE | K11: dr | O11: A Liability | P11: FALSE | Q11: cr | R11: Stockholders' Equity | S11: FALSE | T11: cr | U11: Revenue | V11: FALSE | W11: cr | X11: 1
A12: 1 | B12: 1 | C12: 0.03420754363 | D12: 1.034207544 | E12: The Revenue account is: | F12: An Asset | G12: FALSE | H12: dr | I12: An expense | J12: FALSE | K12: dr | O12: A Liability | P12: FALSE | Q12: cr | R12: Stockholders' Equity | S12: FALSE | T12: cr | U12: Revenue | V12: TRUE | W12: cr | X12: 1
A13: 13 | B13: 1 | C13: 0.5575962879 | D13: 1.557596288 | E13: Common Stock is: | F13: An Asset | G13: FALSE | H13: dr | I13: An expense | J13: FALSE | K13: dr | O13: A Liability | P13: FALSE | Q13: cr | R13: Stockholders' Equity | S13: TRUE | T13: cr | U13: Revenue | V13: FALSE | W13: cr | X13: 1
A14: 5 | B14: 1 | C14: 0.5720824347 | D14: 1.572082435 | E14: Prepaid Advertising is: | F14: An Asset | G14: TRUE | H14: dr | I14: An expense | J14: FALSE | K14: dr | O14: A Liability | P14: FALSE | Q14: cr | R14: Stockholders' Equity | S14: FALSE | T14: cr | U14: Revenue | V14: FALSE | W14: cr | X14: 1
A15: 9 | B15: 1 | C15: 0.6511539627 | D15: =B15+C15 -> 1.651153963 | E15: Interest paid by your company is: | F15: An Asset | G15: FALSE | H15: dr | I15: An expense | J15: TRUE | K15: dr | O15: A Liability | P15: FALSE | Q15: cr | R15: Stockholders' Equity | S15: FALSE | T15: cr | U15: Revenue | V15: FALSE | W15: cr | X15: 1
A16: 15 | B16: 1 | C16: 0.1193005345 | D16: =SUM(B16:C16) -> 1.119300535 | E16: Unearned Revenue is: | F16: An Asset | G16: FALSE | H16: dr | I16: An expense | J16: FALSE | K16: dr | O16: A Liability | P16: TRUE | Q16: cr | R16: Stockholders' Equity | S16: FALSE | T16: cr | U16: Revenue | V16: FALSE | W16: cr | X16: 1
A17: 8 | B17: 1 | C17: 0.06145412882 | D17: =SUM(B17:C17) -> 1.061454129 | E17: The dividends paid by your company is: | F17: An Asset | G17: FALSE | H17: dr | I17: An expense | J17: FALSE | K17: dr | O17: A Liability | P17: FALSE | Q17: cr | R17: Stockholders' Equity | S17: TRUE | T17: cr | U17: Revenue | V17: FALSE | W17: cr | X17: 1
A18: 11 | B18: 1 | C18: 0.2353307266 | D18: =SUM(B18:C18) -> 1.235330727 | E18: The Accounts Payable account is: | F18: An Asset | G18: FALSE | H18: dr | I18: An expense | J18: FALSE | K18: dr | O18: A Liability | P18: TRUE | Q18: cr | R18: Stockholders' Equity | S18: FALSE | T18: cr | U18: Revenue | V18: FALSE | W18: cr | X18: 1
A19: 10 | B19: 1 | C19: 0.2477536993 | D19: =B19+C19 -> 1.247753699 | E19: Interest received by your company is: | F19: An Asset | G19: FALSE | H19: dr | I19: An expense | J19: FALSE | K19: dr | O19: A Liability | P19: FALSE | Q19: cr | R19: Stockholders' Equity | S19: FALSE | T19: cr | U19: Revenue | V19: TRUE | W19: cr | X19: 1
A20: 12 | B20: 1 | C20: 0.02877312932 | D20: =B20+C20 -> 1.028773129 | E20: Notes Payable are: | F20: An Asset | G20: FALSE | H20: dr | I20: An expense | J20: FALSE | K20: dr | O20: A Liability | P20: TRUE | Q20: cr | R20: Stockholders' Equity | S20: FALSE | T20: cr | U20: Revenue | V20: FALSE | W20: cr | X20: 1
A21: 12 | B21: 1 | C21: 0.4894941276 | D21: =SUM(B21:C21) -> 1.489494128 | E21: Cash is: | F21: An Asset | G21: TRUE | H21: dr | I21: An expense | J21: FALSE | K21: dr | O21: A Liability | P21: FALSE | Q21: cr | R21: Stockholders' Equity | S21: FALSE | T21: cr | U21: Revenue | V21: FALSE | W21: cr | X21: 1

Sheet Quiz2 (hidden)
A1: QuestionNo | B1: QuizNo | C1: Random | D1: Index | E1: Question | F1: DrAns1 | G1: DrRtWg1 | H1: Dr1 | I1: DrAns2 | J1: DrRtWg2 | K1: Dr2 | L1: DrAns3 | M1: DrRtWg3 | N1: Dr3 | O1: CrAns1 | P1: CrRtWg1 | Q1: Cr1 | R1: CrAns2 | S1: CrRtWg2 | T1: Cr2 | U1: CrAns3 | V1: CrRtWg3 | W1: Cr3 | X1: QstType
A2: 13 | B2: 2 | C2: =RAND() -> 0.5836163622 | D2: =B2+C2 -> 2.583616362 | E2: To DECREASE the taxes payable account, you: | F2: Debit | G2: TRUE | H2: dr | O2: Credit | P2: FALSE | Q2: cr | X2: 1
A3: 23 | B3: 2 | C3: 0.6211339846 | D3: 2.621133985 | E3: To INCREASE the building account you: | F3: Debit | G3: TRUE | H3: dr | O3: Credit | P3: FALSE | Q3: cr | X3: 1
A4: 6 | B4: 2 | C4: 0.03765766904 | D4: 2.037657669 | E4: To DECREASE the accounts receivables account, you: | F4: Debit | G4: FALSE | H4: dr | O4: Credit | P4: TRUE | Q4: cr | X4: 1
A5: 29 | B5: 2 | C5: 0.2318320185 | D5: 2.231832018 | E5: To INCREASE the office furniture account, you: | F5: Debit | G5: TRUE | H5: dr | O5: Credit | P5: FALSE | Q5: cr | X5: 1
A6: 25 | B6: 2 | C6: 0.2028148981 | D6: 2.202814898 | E6: To INCREASE the Common Stock account, you: | F6: Debit | G6: FALSE | H6: dr | O6: Credit | P6: TRUE | Q6: cr | X6: 1
A7: 5 | B7: 2 | C7: 0.7923640192 | D7: 2.792364019 | E7: To DECREASE the accounts payable account, you: | F7: Debit | G7: TRUE | H7: dr | O7: Credit | P7: FALSE | Q7: cr | X7: 1
A8: 21 | B8: 2 | C8: 0.6175610485 | D8: 2.617561049 | E8: To INCREASE the accounts receivables account, you: | F8: Debit | G8: TRUE | H8: dr | O8: Credit | P8: FALSE | Q8: cr | X8: 1
A9: 8 | B9: 2 | C9: 0.4537779106 | D9: 2.453777911 | E9: To DECREASE the cash account, you: | F9: Debit | G9: FALSE | H9: dr | O9: Credit | P9: TRUE | Q9: cr | X9: 1
A10: 24 | B10: 2 | C10: 0.9393647393 | D10: 2.939364739 | E10: To INCREASE the cash account, you: | F10: Debit | G10: TRUE | H10: dr | O10: Credit | P10: FALSE | Q10: cr | X10: 1
A11: 26 | B11: 2 | C11: 0.05479112903 | D11: 2.054791129 | E11: To INCREASE the dividends account, you: | F11: Debit | G11: TRUE | H11: dr | O11: Credit | P11: FALSE | Q11: cr | X11: 1
A12: 4 | B12: 2 | C12: 0.3724033765 | D12: 2.372403376 | E12: To DECREASE taxes payable, you: | F12: Debit | G12: TRUE | H12: dr | O12: Credit | P12: FALSE | Q12: cr | X12: 1
A13: 11 | B13: 2 | C13: 0.8663146232 | D13: 2.866314623 | E13: To DECREASE the office supplies account, you: | F13: Debit | G13: FALSE | H13: dr | O13: Credit | P13: TRUE | Q13: cr | X13: 1
A14: 31 | B14: 2 | C14: 0.8026129126 | D14: 2.802612913 | E14: To INCREASE the wages payable, you: | F14: Debit | G14: FALSE | H14: dr | O14: Credit | P14: TRUE | Q14: cr | X14: 1
A15: 9 | B15: 2 | C15: 0.5555952001 | D15: 2.5555952 | E15: To DECREASE the Common Stock account, you: | F15: Debit | G15: TRUE | H15: dr | O15: Credit | P15: FALSE | Q15: cr | X15: 1
A16: 7 | B16: 2 | C16: 0.2085255372 | D16: 2.208525537 | E16: To DECREASE the automobile account, you: | F16: Debit | G16: FALSE | H16: dr | O16: Credit | P16: TRUE | Q16: cr | X16: 1
A17: 27 | B17: 2 | C17: 0.8189385171 | D17: 2.818938517 | E17: To INCREASE the interest payable account, you: | F17: Debit | G17: FALSE | H17: dr | O17: Credit | P17: TRUE | Q17: cr | X17: 1
A18: 28 | B18: 2 | C18: 0.348644757 | D18: 2.348644757 | E18: To INCREASE the inventory account, you: | F18: Debit | G18: TRUE | H18: dr | O18: Credit | P18: FALSE | Q18: cr | X18: 1
A19: 12 | B19: 2 | C19: 0.5944794743 | D19: 2.594479474 | E19: To DECREASE the retained earnings account, you: | F19: Debit | G19: TRUE | H19: dr | O19: Credit | P19: FALSE | Q19: cr | X19: 1
A20: 30 | B20: 2 | C20: 0.4364920745 | D20: 2.436492074 | E20: To INCREASE the retained earnings account, you: | F20: Debit | G20: FALSE | H20: dr | O20: Credit | P20: TRUE | Q20: cr | X20: 1
A21: 10 | B21: 2 | C21: 0.7611225414 | D21: 2.761122541 | E21: To DECREASE the mortgage account, you: | F21: Debit | G21: TRUE | H21: dr | O21: Credit | P21: FALSE | Q21: cr | X21: 1

Sheet Quiz3 (hidden)
A1: QuestionNo | B1: QuizNo | C1: Random | D1: Index | E1: Question | F1: DrAns1 | G1: DrRtWg1 | H1: Dr1 | I1: DrAns2 | J1: DrRtWg2 | K1: Dr2 | L1: DrAns3 | M1: DrRtWg3 | N1: Dr3 | O1: CrAns1 | P1: CrRtWg1 | Q1: Cr1 | R1: CrAns2 | S1: CrRtWg2 | T1: Cr2 | U1: CrAns3 | V1: CrRtWg3 | W1: Cr3 | X1: QstType
A2: 19 | B2: 3 | C2: =RAND() -> 0.9303178819 | D2: =SUM(B2:C2) -> 3.930317882 | E2: You pay your employees $2,000 cash for hours they worked. You would: | F2: Increase Wage Expense | G2: TRUE | H2: dr | I2: Decrease Wages Payable | J2: FALSE | K2: dr | O2: Increase Wages Payable | P2: FALSE | Q2: cr | R2: Decrease Cash | S2: TRUE | T2: cr | X2: 2
A3: 7 | B3: 3 | C3: 0.4042334269 | D3: 3.404233427 | E3: You get the utility bill for electricity last month and will pay for it on the due date. You would: | F3: Increase Cash | G3: FALSE | H3: dr | I3: Increase Utilities Expense | J3: TRUE | K3: dr | O3: Increase Utilities Payable | P3: TRUE | Q3: cr | R3: Decrease Cash | S3: FALSE | T3: cr | X3: 2
A4: 10 | B4: 3 | C4: 0.1634841885 | D4: 3.163484188 | E4: You used $300 of office supplies that you purchased earlier. You would: | F4: Increase Cash | G4: FALSE | H4: dr | I4: Increase Supplies Expense | J4: TRUE | K4: dr | O4: Decrease Cash | P4: FALSE | Q4: cr | R4: Decrease Office Supplies (an asset) | S4: TRUE | T4: cr | X4: 2
A5: 3 | B5: 3 | C5: 0.2756453493 | D5: 3.275645349 | E5: You pay $1,500 cash for advertising in today's newspaper. You would: | F5: Increase Advertising Expense | G5: TRUE | H5: dr | I5: Decrease Advertising Payable | J5: FALSE | K5: dr | O5: Decrease Cash | P5: TRUE | Q5: cr | R5: Increase Revenue | S5: FALSE | T5: cr | X5: 2
A6: 12 | B6: 3 | C6: 0.7193517928 | D6: 3.719351793 | E6: Your company is a retailer, like Macy's. The customer pays you $3,500 in cash for merchandise sold to them in the store. You would: | F6: Increase Cash | G6: TRUE | H6: dr | I6: Increase Accounts Receivable | J6: FALSE | K6: dr | O6: Increase Gain on Sale of Inventory | P6: FALSE | Q6: cr | R6: Increase Revenue | S6: TRUE | T6: cr | X6: 2
A7: 4 | B7: 3 | C7: 0.2628729002 | D7: 3.2628729 | E7: You pay your employees Monday for work done the prior week. The weekly payroll is $5,000. December 31 ends on a Friday. Employees worked in December but will be paid in January. The December 31 journal entry is: | F7: Decrease Wages Payable | G7: FALSE | H7: dr | I7: Increase Wage Expense | J7: TRUE | K7: dr | O7: Increase Wages Payable | P7: TRUE | Q7: cr | R7: Decrease Cash | S7: FALSE | T7: cr | X7: 2
A8: 13 | B8: 3 | C8: 0.009688282678 | D8: 3.009688283 | E8: You pay $800 cash for office supplies that you will use in the future. You would: | F8: Increase Office Supplies (an asset) | G8: TRUE | H8: dr | I8: Increase Supplies Expense | J8: FALSE | K8: dr | O8: Decrease Accounts Receivables | P8: FALSE | Q8: cr | R8: Decrease Cash | S8: TRUE | T8: cr | X8: 2
A9: 20 | B9: 3 | C9: 0.4716102235 | D9: 3.471610224 | E9: You pay $600 cash to repair your company's furnace. You would: | F9: Increase Sales | G9: FALSE | H9: dr | I9: Increase Repair Expense | J9: TRUE | K9: dr | O9: Decrease Cash | P9: TRUE | Q9: cr | R9: Increase Accounts Payable | S9: FALSE | T9: cr | X9: 2
A10: 5 | B10: 3 | C10: 0.8681036374 | D10: 3.868103637 | E10: You paid cash to pay off the utilities payable account of $500. You would: | F10: Increase Utilities Expense | G10: FALSE | H10: dr | I10: Decrease Utilities Payable | J10: TRUE | K10: dr | O10: Decrease Utilities Expense | P10: FALSE | Q10: cr | R10: Decrease Cash | S10: TRUE | T10: cr | X10: 2
A11: 2 | B11: 3 | C11: 0.2976291587 | D11: 3.297629159 | E11: You collected $100 in cash the amount owed by a customer for a lawn mowed last month. You would: | F11: Increase Cash | G11: TRUE | H11: dr | I11: Decrease Accounts Payable | J11: FALSE | K11: dr | O11: Decrease Accounts Receivable | P11: TRUE | Q11: cr | R11: Increase Revenue | S11: FALSE | T11: cr | X11: 2
A12: 15 | B12: 3 | C12: 0.7094726881 | D12: 3.709472688 | E12: You mowed a lawn for a customer and collected $100 in cash. You would: | F12: Increase Cash | G12: TRUE | H12: dr | I12: Decrease Sales | J12: FALSE | K12: dr | O12: Decrease Cash | P12: FALSE | Q12: cr | R12: Increase Revenue | S12: TRUE | T12: cr | X12: 2
A13: 9 | B13: 3 | C13: 0.5758443261 | D13: 3.575844326 | E13: You pay for insurance that covers the next 12 months. You would: | F13: Increase Prepaid Insurance | G13: TRUE | H13: dr | I13: Increase Insurance Expense | J13: FALSE | K13: dr | O13: Decrease Prepaid Insurance | P13: FALSE | Q13: cr | R13: Decrease Cash | S13: TRUE | T13: cr | X13: 2
A14: 11 | B14: 3 | C14: 0.7157377569 | D14: 3.715737757 | E14: You deliver merchandise today that the customer paid for last week. | F14: Increase Accounts Receivable | G14: FALSE | H14: dr | I14: Decrease Unearned Revenue | J14: TRUE | K14: dr | O14: Increase Cash | P14: FALSE | Q14: cr | R14: Increase Revenue | S14: TRUE | T14: cr | X14: 2
A15: 1 | B15: 3 | C15: 0.002107314912 | D15: 3.002107315 | E15: You declared and paid cash for dividends to the owners of $900. You would: | F15: Increase Dividends (an equity account) | G15: TRUE | H15: dr | I15: Increase Dividends Expense | J15: FALSE | K15: dr | O15: Increase Dividends Expense | P15: FALSE | Q15: cr | R15: Decrease Cash | S15: TRUE | T15: cr | X15: 2
A16: 14 | B16: 3 | C16: 0.8896582606 | D16: 3.889658261 | E16: One month passes, so you use one month's worth of the $1,200 you paid last month for 6-months of car insurance coverage. You would: | F16: Increase Cash | G16: FALSE | H16: dr | I16: Increase Insurance Expense | J16: TRUE | K16: dr | O16: Decrease Prepaid Insurance (asset) | P16: TRUE | Q16: cr | R16: Increase Sales | S16: FALSE | T16: cr | X16: 2
A17: 6 | B17: 3 | C17: 0.2476039055 | D17: 3.247603905 | E17: Your customer pays you in advance for merchandise to be delivered next week. | F17: Increase Cash | G17: TRUE | H17: dr | I17: Increase Accounts Receivable | J17: FALSE | K17: dr | O17: Increase Unearned Revenue | P17: TRUE | Q17: cr | R17: Decrease Accounts Receivable | S17: FALSE | T17: cr | X17: 2
A18: 16 | B18: 3 | C18: 0.8305786794 | D18: 3.830578679 | E18: You deliver merchandise today that the customer will pay for next week | F18: Decrease Unearned Revenue | G18: FALSE | H18: dr | I18: Increase Accounts Receivable | J18: TRUE | K18: dr | O18: Increase Sales | P18: TRUE | Q18: cr | R18: Increase Unearned Revenue | S18: FALSE | T18: cr | X18: 2
A19: 18 | B19: 3 | C19: 0.03346310167 | D19: 3.033463102 | E19: You collect cash for merchandise delivered last week. | F19: Increase Cash | G19: TRUE | H19: dr | I19: Decrease Unearned Revenue | J19: FALSE | K19: dr | O19: Decrease Accounts Receivables | P19: TRUE | Q19: cr | R19: Increase Unearned Revenue | S19: FALSE | T19: cr | X19: 2
A20: 8 | B20: 3 | C20: 0.4539484534 | D20: 3.453948453 | E20: Inventory you sold cost you $2,000. You would: | F20: Increase Accounts Receivable | G20: FALSE | H20: dr | I20: Increase Cost of goods sold (an expense) | J20: TRUE | K20: dr | O20: Increase Gain on Sale of Inventory | P20: FALSE | Q20: cr | R20: Decrease Inventory | S20: TRUE | T20: cr | X20: 2
A21: 17 | B21: 3 | C21: 0.3601912684 | D21: 3.360191268 | E21: You mowed a lawn for a customer and billed the customer $100 that is due within the next 30 days. You would: | F21: Increase Accounts Receivable | G21: TRUE | H21: dr | I21: Increase Cash | J21: FALSE | K21: dr | O21: Decrease Cash | P21: FALSE | Q21: cr | R21: Increase Revenue | S21: TRUE | T21: cr | X21: 2

Sheet Quiz4 (hidden)
A1: QuestionNo | B1: QuizNo | C1: Random | D1: Index | E1: Question | F1: DrAns1 | G1: DrRtWg1 | H1: Dr1 | I1: DrAns2 | J1: DrRtWg2 | K1: Dr2 | L1: DrAns3 | M1: DrRtWg3 | N1: Dr3 | O1: CrAns1 | P1: CrRtWg1 | Q1: Cr1 | R1: CrAns2 | S1: CrRtWg2 | T1: Cr2 | U1: CrAns3 | V1: CrRtWg3 | W1: Cr3 | X1: QstType
A2: 16 | B2: 4 | C2: =RAND() -> 0.7247964442 | D2: =SUM(B2:C2) -> 4.724796444 | E2: Click on the place where SALARIES PAYABLE would appear on the financial statements | F2: BALANCE SHEET | G2: TRUE | H2: dr | O2: INCOME STATEMENT | P2: FALSE | Q2: cr | X2: 1
A3: 14 | B3: 4 | C3: 0.3978343622 | D3: 4.397834362 | E3: Click on the place where ACCOUNTS PAYABLE appear on the financial statements | F3: BALANCE SHEET | G3: TRUE | H3: dr | O3: INCOME STATEMENT | P3: FALSE | Q3: cr | X3: 1
A4: 9 | B4: 4 | C4: 0.2920324639 | D4: 4.292032464 | E4: Click on the place where MORTGAGES would appear on the financial statements | F4: BALANCE SHEET | G4: TRUE | H4: dr | O4: INCOME STATEMENT | P4: FALSE | Q4: cr | X4: 1
A5: 20 | B5: 4 | C5: 0.5479441941 | D5: 4.547944194 | E5: Click on the place where EQUIPMENT appears on the financial statements | F5: BALANCE SHEET | G5: TRUE | H5: dr | O5: INCOME STATEMENT | P5: FALSE | Q5: cr | X5: 1
A6: 10 | B6: 4 | C6: 0.7041389293 | D6: 4.704138929 | E6: Click on the place where REVENUE appear on the financial statements | F6: BALANCE SHEET | G6: FALSE | H6: dr | O6: INCOME STATEMENT | P6: TRUE | Q6: cr | X6: 1
A7: 13 | B7: 4 | C7: 0.9614996846 | D7: 4.961499685 | E7: Click on the place where INVENTORY appears on the financial statements | F7: BALANCE SHEET | G7: TRUE | H7: dr | O7: INCOME STATEMENT | P7: FALSE | Q7: cr | X7: 1
A8: 7 | B8: 4 | C8: 0.7154161238 | D8: 4.715416124 | E8: Click on the place where SUPPLIES EXPENSE appear on the financial statements | F8: BALANCE SHEET | G8: FALSE | H8: dr | O8: INCOME STATEMENT | P8: TRUE | Q8: cr | X8: 1
A9: 11 | B9: 4 | C9: 0.2786146598 | D9: 4.27861466 | E9: Click on the place where CASH appear on the financial statements | F9: BALANCE SHEET | G9: TRUE | H9: dr | O9: INCOME STATEMENT | P9: FALSE | Q9: cr | X9: 1
A10: 15 | B10: 4 | C10: 0.766030195 | D10: 4.766030195 | E10: Click on the place where PREPAID INSURANCE appears on the financial statements | F10: BALANCE SHEET | G10: TRUE | H10: dr | O10: INCOME STATEMENT | P10: FALSE | Q10: cr | X10: 1
A11: 4 | B11: 4 | C11: 0.4697003611 | D11: 4.469700361 | E11: Click on the place where COST OF GOODS SOLD would appear on the financial statements | F11: BALANCE SHEET | G11: FALSE | H11: dr | O11: INCOME STATEMENT | P11: TRUE | Q11: cr | X11: 1
A12: 3 | B12: 4 | C12: 0.7368091291 | D12: 4.736809129 | E12: Click on the place where INSURANCE EXPENSE would appear on the financial statements | F12: BALANCE SHEET | G12: FALSE | H12: dr | O12: INCOME STATEMENT | P12: TRUE | Q12: cr | X12: 1
A13: 6 | B13: 4 | C13: 0.9585649432 | D13: 4.958564943 | E13: Click on the place where UNEARNED REVENUE appears on the financial statements | F13: BALANCE SHEET | G13: TRUE | H13: dr | O13: INCOME STATEMENT | P13: FALSE | Q13: cr | X13: 1
A14: 18 | B14: 4 | C14: 0.6865831436 | D14: 4.686583144 | E14: Click on the place where OFFICE SUPPLIES would appear on the financial statements | F14: BALANCE SHEET | G14: TRUE | H14: dr | O14: INCOME STATEMENT | P14: FALSE | Q14: cr | X14: 1
A15: 1 | B15: 4 | C15: 0.6317428981 | D15: 4.631742898 | E15: Click on the place where COMMON STOCK would appear on the financial statements | F15: BALANCE SHEET | G15: TRUE | H15: dr | O15: INCOME STATEMENT | P15: FALSE | Q15: cr | X15: 1
A16: 8 | B16: 4 | C16: 0.3481914885 | D16: 4.348191488 | E16: Click on the place where ACCOUNTS RECEIVABLES appear on the financial statements | F16: BALANCE SHEET | G16: TRUE | H16: dr | O16: INCOME STATEMENT | P16: FALSE | Q16: cr | X16: 1
A17: 2 | B17: 4 | C17: 0.1001098337 | D17: 4.100109834 | E17: Click on the place where DIVIDENDS appear on the financial statements | F17: BALANCE SHEET | G17: TRUE | H17: dr | O17: INCOME STATEMENT | P17: FALSE | Q17: cr | X17: 1
A18: 5 | B18: 4 | C18: 0.004747963131 | D18: 4.004747963 | E18: Click on the place where SALES appear on the financial statements | F18: BALANCE SHEET | G18: FALSE | H18: dr | O18: INCOME STATEMENT | P18: TRUE | Q18: cr | X18: 1
A19: 12 | B19: 4 | C19: 0.2767201927 | D19: 4.276720193 | E19: Click on the place where SERVICE REVENUE appears on the financial statements | F19: BALANCE SHEET | G19: FALSE | H19: dr | O19: INCOME STATEMENT | P19: TRUE | Q19: cr | X19: 1
A20: 17 | B20: 4 | C20: 0.4380393089 | D20: 4.438039309 | E20: Click on the place where RETAINED EARNINGS appear on the financial statements | F20: BALANCE SHEET | G20: TRUE | H20: dr | O20: INCOME STATEMENT | P20: FALSE | Q20: cr | X20: 1
A21: 19 | B21: 4 | C21: 0.185610738 | D21: 4.185610738 | E21: Click on the place where UTILITIES EXPENSE appear on the financial statements | F21: BALANCE SHEET | G21: FALSE | H21: dr | O21: INCOME STATEMENT | P21: TRUE | Q21: cr | X21: 1

Sheet Quiz5 (hidden)
A1: QuestionNo | B1: QuizNo | C1: Random | D1: Index | E1: Question | F1: DrAns1 | G1: DrRtWg1 | H1: Dr1 | I1: DrAns2 | J1: DrRtWg2 | K1: Dr2 | L1: DrAns3 | M1: DrRtWg3 | N1: Dr3 | O1: CrAns1 | P1: CrRtWg1 | Q1: Cr1 | R1: CrAns2 | S1: CrRtWg2 | T1: Cr2 | U1: CrAns3 | V1: CrRtWg3 | W1: Cr3 | X1: QstType
A2: 7 | B2: 5 | C2: =RAND() -> 0.2188590109 | D2: =SUM(B2:C2) -> 5.218859011 | E2: Click on the place where SUPPLIES EXPENSE appear on the financial statements | F2: BALANCE SHEET | G2: FALSE | H2: dr | O2: INCOME STATEMENT | P2: TRUE | Q2: cr | X2: 1
A3: 30 | B3: 5 | C3: =RAND() -> 0.5358526565 | D3: =B3+C3 -> 5.535852656 | E3: To INCREASE the retained earnings account, you | F3: Debit | G3: FALSE | H3: dr | O3: Credit | P3: TRUE | Q3: cr | X3: 1
A4: 2 | B4: 5 | C4: =RAND() -> 0.9269182592 | D4: 5.926918259 | E4: A loan to buy a car is: | F4: An Asset | G4: FALSE | H4: dr | I4: An expense | J4: FALSE | K4: dr | O4: A Liability | P4: TRUE | Q4: cr | R4: Stockholders' Equity | S4: FALSE | T4: cr | U4: Revenue | V4: FALSE | W4: cr | X4: 1
A5: 8 | B5: 5 | C5: 0.06588475097 | D5: 5.065884751 | E5: Inventory you sold cost you $2,000. You would: | F5: Increase Accounts Receivable | G5: FALSE | H5: dr | I5: Increase Cost of goods sold (an expense) | J5: TRUE | K5: dr | O5: Increase Gain on Sale of Inventory | P5: FALSE | Q5: cr | R5: Decrease Inventory | S5: TRUE | T5: cr | X5: 2
A6: 12 | B6: 5 | C6: 0.1088230853 | D6: 5.108823085 | E6: Your company is a retailer, like Macy's. The customer pays you $3,500 in cash for merchandise sold to them in the store. You would: | F6: Increase Cash | G6: TRUE | H6: dr | I6: Increase Accounts Receivable | J6: FALSE | K6: dr | O6: Increase Gain on Sale of Inventory | P6: FALSE | Q6: cr | R6: Increase Sales | S6: TRUE | T6: cr | X6: 2
A7: 9 | B7: 5 | C7: =RAND() -> 0.1352251326 | D7: 5.135225133 | E7: Interest paid by your company is: | F7: An Asset | G7: FALSE | H7: dr | I7: An expense | J7: TRUE | K7: dr | O7: A Liability | P7: FALSE | Q7: cr | R7: Stockholders' Equity | S7: FALSE | T7: cr | U7: Revenue | V7: FALSE | W7: cr | X7: 1
A8: 5 | B8: 5 | C8: =RAND() -> 0.3490438536 | D8: 5.349043854 | E8: To DECREASE the accounts payable account, you: | F8: Debit | G8: TRUE | H8: dr | O8: Credit | P8: FALSE | Q8: cr | X8: 1
A9: 4 | B9: 5 | C9: 0.1578427362 | D9: 5.157842736 | E9: You pay your employees Monday for work done the prior week. The weekly payroll is $5,000. December 31 ends on a Friday. Employees worked in December but will be paid in January. The December 31 journal entry is: | F9: Decrease Wages Payable | G9: FALSE | H9: dr | I9: Increase Wage Expense | J9: TRUE | K9: dr | O9: Increase Wages Payable | P9: TRUE | Q9: cr | R9: Decrease Cash | S9: FALSE | T9: cr | X9: 2
A10: 10 | B10: 5 | C10: =RAND() -> 0.4237844692 | D10: 5.423784469 | E10: Interest received by your company is: | F10: An Asset | G10: FALSE | H10: dr | I10: An expense | J10: FALSE | K10: dr | O10: A Liability | P10: FALSE | Q10: cr | R10: Stockholders' Equity | S10: FALSE | T10: cr | U10: Revenue | V10: TRUE | W10: cr | X10: 1
A11: 8 | B11: 5 | C11: 0.9527417951 | D11: 5.952741795 | E11: To DECREASE the cash account, you: | F11: Debit | G11: FALSE | H11: dr | O11: Credit | P11: TRUE | Q11: cr | X11: 1
A12: 17 | B12: 5 | C12: 0.15247635 | D12: =SUM(B12:C12) -> 5.15247635 | E12: Click on the place where RETAINED EARNINGS appear on the financial statements | F12: BALANCE SHEET | G12: TRUE | H12: dr | O12: INCOME STATEMENT | P12: FALSE | Q12: cr | X12: 1
A13: 5 | B13: 5 | C13: 0.003043273296 | D13: =B13+C13 -> 5.003043273 | E13: Prepaid Advertising is: | F13: An Asset | G13: TRUE | H13: dr | I13: An expense | J13: FALSE | K13: dr | O13: A Liability | P13: FALSE | Q13: cr | R13: Stockholders' Equity | S13: FALSE | T13: cr | U13: Revenue | V13: FALSE | W13: cr | X13: 1
A14: 7 | B14: 5 | C14: 0.1146526937 | D14: 5.114652694 | E14: Building is: | F14: An Asset | G14: TRUE | H14: dr | I14: An expense | J14: FALSE | K14: dr | O14: A Liability | P14: FALSE | Q14: cr | R14: Stockholders' Equity | S14: FALSE | T14: cr | U14: Revenue | V14: FALSE | W14: cr | X14: 1
A15: 6 | B15: 5 | C15: 0.296327688 | D15: 5.296327688 | E15: To DECREASE the accounts receivables account, you | F15: Debit | G15: FALSE | H15: dr | O15: Credit | P15: TRUE | Q15: cr | X15: 1
A16: 27 | B16: 5 | C16: 0.2808556137 | D16: 5.280855614 | E16: To INCREASE the interest payable account, you: | F16: Debit | G16: FALSE | H16: dr | O16: Credit | P16: TRUE | Q16: cr | X16: 1
A17: 23 | B17: 5 | C17: 0.7168910667 | D17: 5.716891067 | E17: To INCREASE the building account you: | F17: Debit | G17: TRUE | H17: dr | O17: Credit | P17: FALSE | Q17: cr | X17: 1
A18: 6 | B18: 5 | C18: 0.3090497047 | D18: 5.309049705 | E18: Click on the place where UNEARNED REVENUE appears on the financial statements | F18: BALANCE SHEET | G18: TRUE | H18: dr | O18: INCOME STATEMENT | P18: FALSE | Q18: cr | X18: 1
A19: 5 | B19: 5 | C19: 0.3124918949 | D19: 5.312491895 | E19: Click on the place where SALES appear on the financial statements | F19: BALANCE SHEET | G19: FALSE | H19: dr | O19: INCOME STATEMENT | P19: TRUE | Q19: cr | X19: 1
A20: 8 | B20: 5 | C20: =RAND() -> 0.08230669455 | D20: 5.082306695 | E20: Preferred Stock is: | F20: An Asset | G20: FALSE | H20: dr | I20: An expense | J20: FALSE | K20: dr | O20: A Liability | P20: FALSE | Q20: cr | R20: Stockholders' Equity | S20: TRUE | T20: cr | U20: Revenue | V20: FALSE | W20: cr | X20: 1
A21: 13 | B21: 5 | C21: 0.3277465817 | D21: 5.327746582 | E21: You pay $800 cash for office supplies that you will use in the future. You would: | F21: Increase Office Supplies (an asset) | G21: TRUE | H21: dr | I21: Increase Supplies Expense | J21: FALSE | K21: dr | O21: Decrease Accounts Receivables | P21: FALSE | Q21: cr | R21: Decrease Cash | S21: TRUE | T21: cr | X21: 2
A22: 8 | B22: 5 | C22: =RAND() -> 0.2049004445 | D22: 5.204900444 | E22: The dividends paid by your company is: | F22: An Asset | G22: FALSE | H22: dr | I22: An expense | J22: FALSE | K22: dr | O22: A Liability | P22: FALSE | Q22: cr | R22: Stockholders' Equity | S22: TRUE | T22: cr | U22: Revenue | V22: FALSE | W22: cr | X22: 1
A23: 19 | B23: 5 | C23: 0.8865255198 | D23: =SUM(B23:C23) -> 5.88652552 | E23: Click on the place where INSURANCE EXPENSE appear on the financial statements | F23: BALANCE SHEET | G23: FALSE | H23: dr | O23: INCOME STATEMENT | P23: TRUE | Q23: cr | X23: 1
A24: 11 | B24: 5 | C24: 0.9065498072 | D24: =B24+C24 -> 5.906549807 | E24: The Accounts Payable account is: | F24: An Asset | G24: FALSE | H24: dr | I24: An expense | J24: FALSE | K24: dr | O24: A Liability | P24: TRUE | Q24: cr | R24: Stockholders' Equity | S24: FALSE | T24: cr | U24: Revenue | V24: FALSE | W24: cr | X24: 1
A25: 28 | B25: 5 | C25: 0.1991073628 | D25: 5.199107363 | E25: To INCREASE the inventory account, you: | F25: Debit | G25: TRUE | H25: dr | O25: Credit | P25: FALSE | Q25: cr | X25: 1
A26: 26 | B26: 5 | C26: 0.6204752223 | D26: 5.620475222 | E26: To INCREASE the dividends account, you: | F26: Debit | G26: TRUE | H26: dr | O26: Credit | P26: FALSE | Q26: cr | X26: 1
A27: 3 | B27: 5 | C27: 0.3179264433 | D27: 5.317926443 | E27: The Advertising Expense account is: | F27: An Asset | G27: FALSE | H27: dr | I27: An expense | J27: TRUE | K27: dr | O27: A Liability | P27: FALSE | Q27: cr | R27: Stockholders' Equity | S27: FALSE | T27: cr | U27: Revenue | V27: FALSE | W27: cr | X27: 1
A28: 7 | B28: 5 | C28: 0.9649674938 | D28: 5.964967494 | E28: To DECREASE the automobile account, you: | F28: Debit | G28: FALSE | H28: dr | O28: Credit | P28: TRUE | Q28: cr | X28: 1
A29: 11 | B29: 5 | C29: 0.7438823478 | D29: 5.743882348 | E29: Cost of Goods Sold is: | F29: An Asset | G29: FALSE | H29: dr | I29: An expense | J29: TRUE | K29: dr | O29: A Liability | P29: FALSE | Q29: cr | R29: Stockholders' Equity | S29: FALSE | T29: cr | U29: Revenue | V29: FALSE | W29: cr | X29: 1
A30: 9 | B30: 5 | C30: 0.7426598991 | D30: 5.742659899 | E30: To DECREASE the Common Stock account, you: | F30: Debit | G30: TRUE | H30: dr | O30: Credit | P30: FALSE | Q30: cr | X30: 1
A31: 10 | B31: 5 | C31: 0.5261407442 | D31: 5.526140744 | E31: The Sales account is: | F31: An Asset | G31: FALSE | H31: dr | I31: An expense | J31: FALSE | K31: dr | O31: A Liability | P31: FALSE | Q31: cr | R31: Stockholders' Equity | S31: FALSE | T31: cr | U31: Revenue | V31: TRUE | W31: cr | X31: 1
A32: 10 | B32: 5 | C32: 0.06741809258 | D32: 5.067418093 | E32: To DECREASE the mortgage account, you: | F32: Debit | G32: TRUE | H32: dr | O32: Credit | P32: FALSE | Q32: cr | X32: 1
A33: 24 | B33: 5 | C33: 0.3970844342 | D33: 5.397084434 | E33: To INCREASE the cash account, you: | F33: Debit | G33: TRUE | H33: dr | O33: Credit | P33: FALSE | Q33: cr | X33: 1
A34: 29 | B34: 5 | C34: 0.3314558837 | D34: 5.331455884 | E34: To INCREASE the office furniture account, you: | F34: Debit | G34: TRUE | H34: dr | O34: Credit | P34: FALSE | Q34: cr | X34: 1
A35: 4 | B35: 5 | C35: 0.5936267853 | D35: 5.593626785 | E35: Click on the place where COST OF GOODS SOLD would appear on the financial statements | F35: BALANCE SHEET | G35: FALSE | H35: dr | O35: INCOME STATEMENT | P35: TRUE | Q35: cr | X35: 1
A36: 2 | B36: 5 | C36: 0.6148566942 | D36: 5.614856694 | E36: Click on the place where DIVIDENDS appear on the financial statements | F36: BALANCE SHEET | G36: TRUE | H36: dr | O36: INCOME STATEMENT | P36: FALSE | Q36: cr | X36: 1
A37: 15 | B37: 5 | C37: =RAND() -> 0.4728052611 | D37: 5.472805261 | E37: Unearned Revenue is: | F37: An Asset | G37: FALSE | H37: dr | I37: An expense | J37: FALSE | K37: dr | O37: A Liability | P37: TRUE | Q37: cr | R37: Stockholders' Equity | S37: FALSE | T37: cr | U37: Revenue | V37: FALSE | W37: cr | X37: 1
A38: 4 | B38: 5 | C38: 0.6766919 | D38: 5.6766919 | E38: To DECREASE taxes payable, you: | F38: Debit | G38: TRUE | H38: dr | O38: Credit | P38: FALSE | Q38: cr | X38: 1
A39: 13 | B39: 5 | C39: 0.3099035627 | D39: 5.309903563 | E39: The retained earnings account is: | F39: An Asset | G39: FALSE | H39: dr | I39: An expense | J39: FALSE | K39: dr | O39: A Liability | P39: FALSE | Q39: cr | R39: Stockholders' Equity | S39: TRUE | T39: cr | U39: Revenue | V39: FALSE | W39: cr | X39: 1
A40: 11 | B40: 5 | C40: 0.1941806983 | D40: 5.194180698 | E40: To DECREASE the office supplies account, you: | F40: Debit | G40: FALSE | H40: dr | O40: Credit | P40: TRUE | Q40: cr | X40: 1
A41: 1 | B41: 5 | C41: 0.4938538643 | D41: 5.493853864 | E41: The Revenue account is: | F41: An Asset | G41: FALSE | H41: dr | I41: An expense | J41: FALSE | K41: dr | O41: A Liability | P41: FALSE | Q41: cr | R41: Stockholders' Equity | S41: FALSE | T41: cr | U41: Revenue | V41: TRUE | W41: cr | X41: 1
A42: 13 | B42: 5 | C42: 0.3451068043 | D42: 5.345106804 | E42: To DECREASE the taxes payable account, you: | F42: Debit | G42: TRUE | H42: dr | O42: Credit | P42: FALSE | Q42: cr | X42: 1
A43: 25 | B43: 5 | C43: 0.5671606671 | D43: 5.567160667 | E43: To INCREASE the Common Stock account, you: | F43: Debit | G43: FALSE | H43: dr | O43: Credit | P43: TRUE | Q43: cr | X43: 1
A44: 6 | B44: 5 | C44: 0.1794586156 | D44: 5.179458616 | E44: The Salaries Payable account is: | F44: An Asset | G44: FALSE | H44: dr | I44: An expense | J44: FALSE | K44: dr | O44: A Liability | P44: TRUE | Q44: cr | R44: Stockholders' Equity | S44: FALSE | T44: cr | U44: Revenue | V44: FALSE | W44: cr | X44: 1
A45: 31 | B45: 5 | C45: 0.2699484922 | D45: 5.269948492 | E45: To INCREASE the wages payable, you: | F45: Debit | G45: FALSE | H45: dr | O45: Credit | P45: TRUE | Q45: cr | X45: 1
A46: 9 | B46: 5 | C46: 0.4689829176 | D46: 5.468982918 | E46: A mortgage is: | F46: An Asset | G46: FALSE | H46: dr | I46: An expense | J46: FALSE | K46: dr | O46: A Liability | P46: TRUE | Q46: cr | R46: Stockholders' Equity | S46: FALSE | T46: cr | U46: Revenue | V46: FALSE | W46: cr | X46: 1
A47: 4 | B47: 5 | C47: 0.07570682604 | D47: 5.075706826 | E47: The Accounts Receivables account is: | F47: An Asset | G47: TRUE | H47: dr | I47: An expense | J47: FALSE | K47: dr | O47: A Liability | P47: FALSE | Q47: cr | R47: Stockholders' Equity | S47: FALSE | T47: cr | U47: Revenue | V47: FALSE | W47: cr | X47: 1
A48: 9 | B48: 5 | C48: 0.7696157434 | D48: 5.769615743 | E48: An account payable is: | F48: An Asset | G48: FALSE | H48: dr | I48: An expense | J48: FALSE | K48: dr | O48: A Liability | P48: TRUE | Q48: cr | R48: Stockholders' Equity | S48: FALSE | T48: cr | U48: Revenue | V48: FALSE | W48: cr | X48: 1
A49: 19 | B49: 5 | C49: 0.4265887369 | D49: =SUM(B49:C49) -> 5.426588737 | E49: Click on the place where UTILITIES EXPENSE appear on the financial statements | F49: BALANCE SHEET | G49: FALSE | H49: dr | O49: INCOME STATEMENT | P49: TRUE | Q49: cr | X49: 1
A50: 12 | B50: 5 | C50: 0.7460164791 | D50: =B50+C50 -> 5.746016479 | E50: Notes Payable are: | F50: An Asset | G50: FALSE | H50: dr | I50: An expense | J50: FALSE | K50: dr | O50: A Liability | P50: TRUE | Q50: cr | R50: Stockholders' Equity | S50: FALSE | T50: cr | U50: Revenue | V50: FALSE | W50: cr | X50: 1
A51: 18 | B51: 5 | C51: 0.9373007551 | D51: =B51+C51 -> 5.937300755 | E51: Click on the place where OFFICE SUPPLIES would appear on the financial statements | F51: BALANCE SHEET | G51: TRUE | H51: dr | O51: INCOME STATEMENT | P51: FALSE | Q51: cr | X51: 1
A52: 15 | B52: 5 | C52: =RAND() -> 0.21982169 | D52: =SUM(B52:C52) -> 5.21982169 | E52: Click on the place where PREPAID INSURANCE appears on the financial statements | F52: BALANCE SHEET | G52: TRUE | H52: dr | O52: INCOME STATEMENT | P52: FALSE | Q52: cr | X52: 1
A53: 21 | B53: 5 | C53: =RAND() -> 0.8350564635 | D53: =B53+C53 -> 5.835056464 | E53: To INCREASE the accounts receivables account, you: | F53: Debit | G53: TRUE | H53: dr | O53: Credit | P53: FALSE | Q53: cr | X53: 1
A54: 9 | B54: 5 | C54: 0.9826516484 | D54: =B54+C54 -> 5.982651648 | E54: Click on the place where MORTGAGES would appear on the financial statements | F54: BALANCE SHEET | G54: TRUE | H54: dr | O54: INCOME STATEMENT | P54: FALSE | Q54: cr | X54: 1
A55: 12 | B55: 5 | C55: =RAND() -> 0.937868406 | D55: =B55+C55 -> 5.937868406 | E55: To DECREASE the retained earnings account, you: | F55: Debit | G55: TRUE | H55: dr | O55: Credit | P55: FALSE | Q55: cr | X55: 1
A56: 18 | B56: 5 | C56: 0.9962706944 | D56: =B56+C56 -> 5.996270694 | E56: You collect cash for merchandise delivered last week. | F56: Increase Cash | G56: TRUE | H56: dr | I56: Increase Sales | J56: FALSE | K56: dr | O56: Decrease Accounts Receivables | P56: TRUE | Q56: cr | R56: Decrease Unearned Revenue | S56: FALSE | T56: cr | X56: 2

Sheet messages (hidden)
A1: Random | B1: Great | C1: Good | D1: Poor | E1: Errors
A2: =RAND() -> 0.4903393833 | B2: Super! Keep up the good work! | C2: Keep working hard, but let's move on | D2: Take your time and read carefully. | E2: Read that one more time
A3: =RAND() -> 0.2959279726 | B3: Wonderful! Time to LEVEL UP! | C3: OK, but try a little harder | D3: Oh, no! Try this level again? | E3: Oops!
A4: =RAND() -> 0.7509663876 | B4: You've Got It! Moving on Up! | C4: Move on, but review this later | D4: You may want to review videos/notes. | E4: Did you just hit the wrong button?
A5: =RAND() -> 0.05961476179 | B5: Marvelous! Let's Move On! | C5: You have the idea, but maybe go slower | D5: Really? You can do better! | E5: You know better
A6: =RAND() -> 0.8740221306 | B6: Good Job! Keep Going! | C6: You're doing fine, but you can do better | D6: Focus! You may want to try again. | E6: Sorry, wrong answer

Sheet QuizNames (hidden)
A1: QuizNo | B1: QuizName | C1: NoQuestion
A2: 1 | B2: Accounting Equation | C2: 20
A3: 2 | B3: Debit and Credits | C3: 20
A4: 3 | B4: Two Sides to Transactions | C4: 20
A5: 4 | B5: Financial Statements | C5: 20
A6: 5 | B6: Potpourri | C6: 20

Sheet SplashScreen
